Cogmind - Beta 9.6 --- EXPLORER MODE // 2020.09.04 @ 11:32:22 Player: d4void Result: Destroyed by G-50 Soldier with Heavy Laser Performance ------------- Evolutions (4) 2000 Regions Visited (24) 4800 Robots Destroyed (512) 2560 Value Destroyed (21747) 21747 Prototype IDs (59) 1180 Alien Tech Used (0) 0 Bonus (4381) 4381 TOTAL SCORE: 36668 Bonus ------- High Alert Combat Kills 963 Follower Combat Kills 707 Entered Garrisons 800 Used RIF Installer 2000 Aligned with FarCom 300 Met Data Miner 300 Friendly Fire -689 Cogmind --------- Core Integrity 0/850 Matter 257/300 Energy 350/350 System Corruption 0% Temperature Cool (9) Movement Treading (190) Ox1 Location -5/Proximity Caves Parts ------- > --- POWER (2) -------- Angular Momentum Engine Light Angular Momentum Engine > --- PROPULSION (4) --- Armored Treads Armored Treads Medium Treads Spiked Medium Treads > --- UTILITY (8) ------ Cooling System Improved Cooling System High-capacity Storage Unit High-capacity Storage Unit Structural Scanner Experimental Terrain Scan Processor Relay Coupler [NC] (27) > --- WEAPON (2) ------- Compact Ion Cannon Slug Cannon > --- INVENTORY (20) --- Fusion Compressor Spectral Analyzer 0b10 Decoder Chip [Looter] Faulty Experimental Core Analyzer Experimental Armor Integrity Analyzer Advanced System Shield Relay Coupler [NC] (51) Relay Coupler [NC] (45) Relay Coupler [NC] (71) Relay Coupler [NC] (54) Component Analysis Suite Dynamic Insulation System Improved System Backup Module Mobile Refinery Mk. CCLXVII Trap Reconfigurator Recalibrator Improved EM Pulse Cannon Disruptor Cannon Compact Ion Cannon Improved Remote Datajack Peak State ------------ > --- POWER ------------ Deuterium Engine Light Fission Core > --- PROPULSION ------- Improved Medium Treads Improved Medium Treads Improved Medium Treads Improved Medium Treads > --- UTILITY ---------- Advanced Heat Sink High-capacity Storage Unit High-capacity Storage Unit Experimental Terrain Scan Processor Phase Shifter Experimental Weapon Shielding Experimental Thermal Shield Relay Coupler [NC] > --- WEAPON ----------- Mass Driver Mass Driver > --- INVENTORY -------- Light Fission Core Fusion Compressor Structural Scanner Experimental Terrain Scanner Relay Coupler [NC] Relay Coupler [NC] Relay Coupler [NC] Dynamic Insulation System Improved System Backup Module Trap Reconfigurator Improved EM Pulse Cannon Proton Cannon Phase Cannon Phase Cannon Phase Cannon Compact Ion Cannon Compact Ion Cannon Compact Ion Cannon Remote Datajack [Rating: 82] Favorites ----------- Power Enhanced Nuclear Core Engine Angular Momentum Engine Power Core Enhanced Nuclear Core Reactor Light Antimatter Reactor Propulsion Light Treads Treads Light Treads Utility High-capacity Storage Unit Device Improved Cooling System Storage High-capacity Storage Unit Processor Improved Targeting Computer Hackware Relay Coupler [NC] Protection Improved Power Shielding Weapon Compact Ion Cannon Energy Gun EM Shotgun Energy Cannon Compact Ion Cannon Ballistic Gun Assault Rifle Ballistic Cannon Advanced Assault Cannon Special Weapon Remote Datajack Special Melee Weapon Improved Datajack Build | -11 -10 -10 -9 -9 -9 -8 -8 -8 -8 -8 -7 -7 -7 -7 -7 -7 -6 -6 -6 -6 -6 -6 -6 -5 ------- Run | Scr Mat Min Mat Min Exi Min Mat Gar Mat Gar Fac Gar Fac Low Low Dat Pro Fac Gar Fac Low Low Zio Pro Slots Evolved 9 | . 1 . 2 . . . 2 . . . 2 . . . . . . 2 . . . . . . Power 1 | . . . . . . . . . . . 1 . . . . . . . . . . . . . Propulsion 2 | . . . . . . . . . . . 1 . . . . . . 1 . . . . . . Utility 6 | . 1 . 2 . . . 2 . . . . . . . . . . 1 . . . . . . Weapon . | . . . . . . . . . . . . . . . . . . . . . . . . . Parts Attached 522 | 9 7 . 14 . . . 8 15 7 15 102 23 17 17 12 . 18 110 24 65 4 1 52 2 Power 52 | 2 1 . 2 . . . 1 1 1 . 10 . . 1 1 . 3 11 2 6 . . 8 2 Engine 41 | 2 1 . 2 . . . 1 1 1 . 7 . . . 1 . 3 7 2 4 . . 7 2 Core 10 | . . . . . . . . . . . 3 . . 1 . . . 3 . 2 . . 1 . Reactor 1 | . . . . . . . . . . . . . . . . . . 1 . . . . . . Propulsion 76 | 2 . . 2 . . . 4 2 2 2 13 7 . 5 1 . 3 12 6 10 1 . 4 . Treads 76 | 2 . . 2 . . . 4 2 2 2 13 7 . 5 1 . 3 12 6 10 1 . 4 . Leg . | . . . . . . . . . . . . . . . . . . . . . . . . . Wheel . | . . . . . . . . . . . . . . . . . . . . . . . . . Hover . | . . . . . . . . . . . . . . . . . . . . . . . . . Flight . | . . . . . . . . . . . . . . . . . . . . . . . . . Utility 197 | 2 3 . 4 . . . 3 7 4 7 29 7 7 5 5 . 7 44 13 22 1 1 26 . Device 128 | . . . 2 . . . 2 6 2 3 16 4 4 1 3 . 4 32 8 16 . 1 24 . Storage 10 | 1 3 . . . . . . . . . 2 . . . . . . 4 . . . . . . Processor 6 | 1 . . 2 . . . . . . . . . . . . . 1 1 . . . . 1 . Hackware 14 | . . . . . . . . . . . 5 2 2 . . . . 2 . 3 . . . . Protection 39 | . . . . . . . 1 1 2 4 6 1 1 4 2 . 2 5 5 3 1 . 1 . Artifact . | . . . . . . . . . . . . . . . . . . . . . . . . . Weapon 197 | 3 3 . 6 . . . . 5 . 6 50 9 10 6 5 . 5 43 3 27 2 . 14 . Energy Gun 40 | 1 1 . 2 . . . . 2 . 5 8 . . 2 1 . 1 17 . . . . . . Energy Cannon 58 | . . . 2 . . . . 3 . 1 10 1 3 2 2 . 1 8 1 13 2 . 9 . Ballistic Gun 3 | 2 . . 1 . . . . . . . . . . . . . . . . . . . . . Ballistic Cannon 41 | . 2 . 1 . . . . . . . 12 4 2 1 1 . 1 4 2 8 . . 3 . Launcher . | . . . . . . . . . . . . . . . . . . . . . . . . . Special Weapon 43 | . . . . . . . . . . . 8 4 5 1 1 . 2 14 . 6 . . 2 . Impact Weapon . | . . . . . . . . . . . . . . . . . . . . . . . . . Slashing Weapon . | . . . . . . . . . . . . . . . . . . . . . . . . . Piercing Weapon . | . . . . . . . . . . . . . . . . . . . . . . . . . Special Melee Weapon 12 | . . . . . . . . . . . 12 . . . . . . . . . . . . . Unidentified Prototypes 10 | . . . 4 . . . 1 . . . . . . . . . . 4 . . . . 1 . Parts Lost 78 | . . . . . . . . 9 . 3 4 1 . 9 8 . . 7 5 13 1 1 15 2 Power 11 | . . . . . . . . 1 . . 1 . . 1 1 . . 1 . 2 . . 3 1 Propulsion 19 | . . . . . . . . 1 . . . . . 3 2 . . 2 4 3 1 . 3 . Utility 24 | . . . . . . . . 3 . 2 1 . . 2 3 . . . 1 6 . 1 4 1 Weapon 24 | . . . . . . . . 4 . 1 2 1 . 3 2 . . 4 . 2 . . 5 . Highest Loss Streak 7 | . . . . . . . . 4 . 1 2 1 . 4 7 . . 4 3 2 1 1 7 1 Average Slot Usage (%) 96 | . 99 100 98 100 100 100 95 89 100 99 97 100 100 97 91 92 98 98 99 95 92 92 90 94 Engine 7 | . 12 12 10 10 10 10 8 7 8 8 8 . . . 4 7 7 5 12 8 12 12 10 11 Core 4 | . . . . . . . . . . . 4 14 14 13 9 7 7 4 . 3 . . 1 . Treads 20 | . 25 25 20 20 20 20 16 15 16 15 19 21 21 18 16 14 19 23 24 22 19 18 16 25 Device 16 | . . . 18 20 20 20 23 20 25 12 14 15 18 7 11 14 14 24 18 21 20 22 20 20 Storage 14 | . 24 25 20 20 20 20 16 16 16 16 14 14 14 14 14 14 14 12 12 12 12 12 12 12 Processor 6 | . 12 12 10 10 10 10 8 8 8 8 7 7 7 7 2 . 2 6 6 6 6 6 7 6 Hackware 4 | . . . . . . . . . . . 5 2 6 7 2 . . 5 6 6 6 6 6 6 Protection 5 | . . . . . . . 5 3 7 19 8 9 3 13 17 21 18 . 6 2 3 2 1 . Energy Gun 3 | . 6 12 8 . . . . 7 8 10 5 6 . 2 5 . . 7 . . . . . . Energy Cannon 6 | . . . 2 20 20 20 16 8 8 5 2 . 8 10 7 7 7 1 11 6 10 12 11 6 Ballistic Cannon 2 | . 11 12 8 . . . . . . . 2 6 1 1 . 7 5 1 . 3 . . . 6 Naked Turns . | . . . . . . . . . . . . . . . . . . . . . . . . . Heaviest Build 124 | 16 80 80 82 82 82 82 86 86 105 124 122 119 119 118 109 109 112 114 113 116 105 103 114 107 Greatest Support 120 | 40 40 40 40 40 40 40 56 56 42 45 71 72 72 78 70 53 73 108 108 120 108 78 96 96 Greatest Overweight (x) 31 | . 1 1 2 2 2 2 2 3 2 4 2 1 1 4 3 2 2 2 3 3 1 1 31 1 Average Overweight (x) 1 | . . 1 1 2 2 2 1 1 2 2 1 1 1 1 1 2 1 . . . . 1 1 . Largest Inventory Capacity 20 | 8 20 20 20 20 20 20 20 20 20 20 20 20 20 20 20 20 20 20 20 20 20 20 20 20 Average Capacity 19 | 7 19 20 20 20 20 20 20 20 20 20 20 20 20 20 20 20 20 20 20 20 20 20 20 20 Most Carried 20 | 7 20 20 20 20 20 20 20 20 20 20 20 20 20 20 20 20 20 20 20 20 20 20 20 20 Average Carried 19 | 3 16 19 19 20 19 20 19 15 19 19 19 19 19 19 19 20 19 19 19 19 19 20 19 20 Final Capacity 20 | 8 20 20 20 20 20 20 20 20 20 20 20 20 20 20 20 20 20 20 20 20 20 20 20 20 Final Carried 20 | 7 19 20 20 20 20 20 20 15 20 19 20 20 20 20 20 20 20 20 20 19 20 20 20 20 Class Distribution -------------------- 54% | Hacker-Mutant 18% | Bothacker-Mutant 17% | Scavenger-Mutant 4% | Scavenger-Skirmisher 3% | Bothacker-Skirmisher Dominant Class ---------------- Hacker-Mutant | -10/Materials Hacker-Mutant | -10/Mines Hacker-Mutant | -9/Materials Hacker-Mutant | -9/Mines Hacker-Mutant | -9/Exiles Hacker-Mutant | -8/Mines Hacker-Mutant | -8/Materials Hacker-Mutant | -8/Garrison Hacker-Mutant | -8/Materials Hacker-Mutant | -8/Garrison Bothacker-Mutant | -7/Factory Hacker-Mutant | -7/Garrison Bothacker-Mutant | -7/Factory Hacker-Mutant | -7/Lower Caves Scavenger-Mutant | -7/Lower Caves Scavenger-Mutant | -7/Data Miner Scavenger-Mutant | -6/Proximity Caves Scavenger-Skirmisher | -6/Factory Bothacker-Mutant | -6/Garrison Bothacker-Mutant | -6/Factory Hacker-Mutant | -6/Lower Caves Hacker-Mutant | -6/Lower Caves Hacker-Mutant | -6/Zion Bothacker-Mutant | -5/Proximity Caves Resources | -11 -10 -10 -9 -9 -9 -8 -8 -8 -8 -8 -7 -7 -7 -7 -7 -7 -6 -6 -6 -6 -6 -6 -6 -5 ----------- Run | Scr Mat Min Mat Min Exi Min Mat Gar Mat Gar Fac Gar Fac Low Low Dat Pro Fac Gar Fac Low Low Zio Pro Matter Collected 8842 | 214 424 36 216 4 . . 80 130 70 150 1579 598 297 382 166 . 318 1533 296 1365 71 10 829 74 Remotely . | . . . . . . . . . . . . . . . . . . . . . . . . . Salvage Created 20966 | . 477 107 539 . . 140 967 1115 758 1062 3233 590 854 621 976 . 468 2842 1255 2064 347 233 1994 324 Parts 1076 | . 38 7 27 . . 12 53 56 50 51 163 30 41 34 40 . 14 142 50 109 10 10 130 9 Haulers Intercepted 15 | . 2 . 2 . . . 3 . 1 . 2 . 2 . . . . 2 . 1 . . . . Recyclers Shooed 5 | . . . 1 . . . . . . . 1 . . . . . . 2 . 1 . . . . Parts Field Recycled . | . . . . . . . . . . . . . . . . . . . . . . . . . Retrieved Matter . | . . . . . . . . . . . . . . . . . . . . . . . . . Parts Self-Destructed . | . . . . . . . . . . . . . . . . . . . . . . . . . Prevented . | . . . . . . . . . . . . . . . . . . . . . . . . . Kills | -11 -10 -10 -9 -9 -9 -8 -8 -8 -8 -8 -7 -7 -7 -7 -7 -7 -6 -6 -6 -6 -6 -6 -6 -5 ------- Run | Scr Mat Min Mat Min Exi Min Mat Gar Mat Gar Fac Gar Fac Low Low Dat Pro Fac Gar Fac Low Low Zio Pro Combat Hostiles Destroyed 364 | . 6 2 8 . . 4 17 28 8 23 55 20 13 14 19 . 8 45 23 39 9 5 10 8 Guns 88 | . 5 1 2 . . . . 13 2 12 13 6 . 1 4 . . 29 . . . . . . Cannons 251 | . 1 1 6 . . 4 17 14 6 11 36 13 13 13 10 . 6 13 23 37 7 4 8 8 AOE 14 | . . . . . . . . 1 . . 4 . . . 4 . 2 1 . 1 1 . . . Classes Destroyed 19 | . 6 . 1 . . . 1 . 2 1 3 . . 1 . . . . . . . . 4 . Worker 4 | . . . . . . . . . . . 2 . . . . . . 1 . 1 . . . . Builder 23 | . 5 1 . . . . 1 . 3 . 4 . . . . . . 2 . 7 . . . . Tunneler 2 | . . . . . . . . . . . 2 . . . . . . . . . . . . . Hauler 15 | . 2 . 2 . . . 3 . 1 . 2 . 2 . . . . 2 . 1 . . . . Recycler 10 | . 1 . 1 . . . . . 1 . 4 . 1 . . . . . . 2 . . . . Operator 2 | . . . . . . . . . 2 . . . . . . . . . . . . . . . Watcher 32 | . 2 . 2 . . . 3 . 5 2 8 . 3 . . . . 4 . 3 . . . . Swarmer 82 | . 2 . . . . 2 5 10 . 3 10 10 . 3 2 . . 9 4 10 6 3 . 3 Grunt 154 | . 4 2 6 . . 2 6 12 4 10 23 6 8 7 8 . 4 20 11 14 3 2 . 2 Brawler 12 | . . . . . . . . . 1 2 2 . 1 1 2 . . . . 2 . . . 1 Duelist 12 | . . . . . . . . . . 1 1 1 . . 5 . 2 . . 2 . . . . Sentry 47 | . . . 2 . . . 5 5 1 5 8 2 2 1 1 . 1 5 5 3 . . . 1 Hunter 20 | . . . . . . . 1 1 2 2 2 1 . . . . 1 4 2 3 . . . 1 Programmer 25 | . . . . . . . . . . . 9 . 2 1 1 . . 6 1 5 . . . . Behemoth 2 | . . . . . . . . . . . . . . 1 . . . 1 . . . . . . Enhanced Grunt 1 | . . . . . . . . . . . . . . . . . . 1 . . . . . . Zionite 50 | . . . . . . . . . . . . . . . . . . . . . . . 50 . Tinkerer 8 | . . . . . . . . . . . . . . . . . . . . . . . 8 . Surgeon 1 | . . . . . . . . . . . . . . . . . . . . . . . 1 . Thug 1 | . . . . . . . . . . . . . . . . . . . . . . . 1 . Butcher 1 | . . . . . . . . . . . . . . . . . . . . . . . 1 . Marauder 2 | . . . . . . . . . . . . . . . . . . . . . . . 2 . Mutant 5 | . . . . . . . . . . . . . . . . . . . . . . . 5 . Best Kill Streak 9 | . 4 2 6 . . 3 4 5 5 5 7 4 4 6 9 . 2 6 6 5 3 3 7 4 Combat Bots Only 9 | . 2 2 5 . . 3 4 5 3 5 7 4 3 6 9 . 2 6 6 4 3 3 2 4 Max Kills in Single Turn 4 | . 1 1 2 . . 1 2 2 2 1 2 1 1 1 4 . 2 2 1 2 2 1 2 1 Gunslinging . | . . . . . . . . . . . . . . . . . . . . . . . . . Exploded 3 | . . . . . . . . 1 . . 1 . . . 3 . 2 1 . 1 1 . . . Melee . | . . . . . . . . . . . . . . . . . . . . . . . . . Uniques/NPCs Destroyed 1 | . . . . . . . . . . . . . . . . . . . . . . . 1 . Imprinter (-6/Zion) Combat | -11 -10 -10 -9 -9 -9 -8 -8 -8 -8 -8 -7 -7 -7 -7 -7 -7 -6 -6 -6 -6 -6 -6 -6 -5 -------- Run | Scr Mat Min Mat Min Exi Min Mat Gar Mat Gar Fac Gar Fac Low Low Dat Pro Fac Gar Fac Low Low Zio Pro Damage Taken 16938 | . 63 54 207 . . 58 336 1191 254 557 1965 393 438 1141 822 . 259 2925 1018 2572 341 173 1873 298 Core 1741 | . . 6 27 . . . 26 163 41 81 227 65 19 109 107 . 18 214 85 197 42 13 276 25 Absorbed by Shields 13 | . . . . . . . . . . . . . . . . . . . . 13 . . . . Core Remaining (%) 71 | 100 . 97 . . . 93 . . . 43 . . . . . . 22 . . . . . . . Volleys Fired 1412 | . 41 9 20 . . 9 42 93 46 89 179 64 62 45 43 . 32 190 84 150 17 12 168 17 Largest 2 | . 2 2 2 . . 2 2 2 2 2 2 2 2 2 2 . 2 2 2 2 2 2 2 2 Hottest 180 | . 80 80 80 . . 136 136 136 113 148 140 128 145 145 149 . 171 170 180 180 159 159 180 138 Shots Fired 2562 | . 81 15 38 . . 18 84 159 68 154 300 107 103 89 81 . 58 339 166 279 34 24 331 34 Gun 623 | . 40 6 18 . . . . 58 22 76 110 37 . 8 27 . 6 215 . . . . . . Cannon 1835 | . 41 9 20 . . 18 84 101 46 78 162 59 91 80 49 . 46 102 166 263 34 24 328 34 Launcher . | . . . . . . . . . . . . . . . . . . . . . . . . . Special 104 | . . . . . . . . . . . 28 11 12 1 5 . 6 22 . 16 . . 3 . Kinetic 505 | . 79 9 20 . . . . . . . 68 53 24 25 . . 18 62 1 102 . . 27 17 Thermal 1494 | . . . . . . 18 84 101 46 133 114 43 67 55 36 . 14 220 153 147 17 12 217 17 Explosive . | . . . . . . . . . . . . . . . . . . . . . . . . . Electromagnetic 459 | . 2 6 18 . . . . 58 22 21 90 . . 8 40 . 20 35 12 14 17 12 84 . Robot Hit Streak 55 | . 19 10 20 . . 15 17 29 38 47 40 22 55 42 42 . 54 45 36 28 12 20 55 30 Robot Miss Streak 3 | . 2 2 1 . . 2 2 3 1 2 2 2 1 1 1 . 1 2 1 2 1 1 2 2 Penetration Max 1 | . . . . . . . . . . . . . . . . . . . . 1 . . . . Secondary Targets 3 | . . . . . . . . . . . . . . . . . . 3 . . . . . . Max Gunslinging Chain 1 | . . . . . . . . . . . . . . . . . . 1 . . . . . . Shots Hit Robots 2055 | . 58 13 34 . . 14 62 106 57 79 293 71 92 77 70 . 54 284 110 228 30 20 276 27 Core Hits 871 | . 22 6 20 . . 7 31 49 33 49 150 37 28 26 35 . 22 105 47 83 11 7 91 12 Critical Hits 83 | . 1 . 2 . . 3 12 15 2 4 4 . 2 1 . . 1 14 3 5 2 . 8 4 Critical Kills 37 | . . . 1 . . 1 6 6 2 2 2 . 1 . . . 1 4 1 4 . . 2 4 Critical Parts Destroyed 45 | . 1 . 1 . . 2 6 9 . 2 2 . 1 1 . . . 10 2 1 2 . 5 . Melee Attacks 34 | . . . . . . . . . . . 34 . . . . . . . . . . . . . Impact . | . . . . . . . . . . . . . . . . . . . . . . . . . Slashing . | . . . . . . . . . . . . . . . . . . . . . . . . . Piercing . | . . . . . . . . . . . . . . . . . . . . . . . . . Sneak Attacks 34 | . . . . . . . . . . . 34 . . . . . . . . . . . . . Combat Hostiles . | . . . . . . . . . . . . . . . . . . . . . . . . . Follow-up Attacks . | . . . . . . . . . . . . . . . . . . . . . . . . . Damage Inflicted 51318 | . 811 202 634 . . 306 1446 2463 1462 1813 6071 1394 2257 1924 2078 . 1583 7000 3041 7164 977 502 7483 707 Guns 10898 | . 412 68 323 . . . . 771 467 837 2335 567 . 90 501 . 154 4373 . . . . . . Cannons 38287 | . 399 134 311 . . 306 1446 1509 888 976 3378 827 2257 1834 1003 . 1187 2263 3041 6985 894 502 7440 707 Explosions 2133 | . . . . . . . . 183 107 . 358 . . . 574 . 242 364 . 179 83 . 43 . Melee . | . . . . . . . . . . . . . . . . . . . . . . . . . Ramming . | . . . . . . . . . . . . . . . . . . . . . . . . . Kinetic 10010 | . 800 134 311 . . . . . . . 1257 699 555 473 . . 393 1227 . 2916 . . 921 324 Thermal 32733 | . . . . . . 306 1446 1692 995 1706 2838 695 1702 1361 1376 . 633 5285 2950 3893 500 245 4727 383 Explosive . | . . . . . . . . . . . . . . . . . . . . . . . . . Electromagnetic 8575 | . 11 68 323 . . . . 771 467 107 1976 . . 90 702 . 557 488 91 355 477 257 1835 . Impact . | . . . . . . . . . . . . . . . . . . . . . . . . . Slashing . | . . . . . . . . . . . . . . . . . . . . . . . . . Piercing . | . . . . . . . . . . . . . . . . . . . . . . . . . Highest Corruption 6 | . . . . . . . . . . . 4 . 1 . 6 1 1 3 3 3 . . 2 . Average Corruption 1 | . . . . . . . . . . . 1 . 1 . 3 1 1 1 2 1 . . 1 . Corruption Purged 21 | . . . . . . . . . . . 4 . 1 . 5 . 1 1 3 4 . . 2 . Effects 53 | . . . . . . . . . . . 9 . 1 . 17 1 1 6 7 7 . . 4 . Message Errors 12 | . . . . . . . . . . . 1 . 1 . 4 . . 2 1 2 . . 1 . Matter Fused 8 | . . . . . . . . . . . 2 . . . 5 . . . . 1 . . . . Heat Flow Errors 4 | . . . . . . . . . . . 1 . . . 2 . . . 1 . . . . . Energy Discharges 7 | . . . . . . . . . . . 1 . . . . 1 . . 2 2 . . 1 . Data Loss (minor) 7 | . . . . . . . . . . . 2 . . . 1 . . 1 . 1 . . 2 . Misfires 2 | . . . . . . . . . . . . . . . 2 . . . . . . . . . Targeting Errors 11 | . . . . . . . . . . . 1 . . . 3 . 1 2 3 1 . . . . Weapon Failures 2 | . . . . . . . . . . . 1 . . . . . . 1 . . . . . . Overload Shots . | . . . . . . . . . . . . . . . . . . . . . . . . . Overflow Damage 1030 | . 12 . . . . . 33 91 33 8 28 16 71 59 7 . 41 128 65 224 13 . 188 13 Projectiles 877 | . 12 . . . . . 33 43 1 8 28 16 71 59 7 . 41 55 65 224 13 . 188 13 Explosions 153 | . . . . . . . . 48 32 . . . . . . . . 73 . . . . . . Melee . | . . . . . . . . . . . . . . . . . . . . . . . . . Knockbacks 56 | . 5 5 5 . . . . . . . 9 3 1 . . . 2 10 . 16 . . . . Impact . | . . . . . . . . . . . . . . . . . . . . . . . . . Kinetic 53 | . 5 5 4 . . . . . . . 9 3 1 . . . 2 9 . 15 . . . . Secondary 3 | . . . 1 . . . . . . . . . . . . . . 1 . 1 . . . . Self-Inflicted Damage 254 | . . . . . . . . 26 . . . . . . . . . 73 . 128 . . 27 . Shots 5 | . . . . . . . . 1 . . . . . . . . . 1 . 2 . . 1 . Rammed . | . . . . . . . . . . . . . . . . . . . . . . . . . Targets Rammed . | . . . . . . . . . . . . . . . . . . . . . . . . . Kicked . | . . . . . . . . . . . . . . . . . . . . . . . . . Crushed . | . . . . . . . . . . . . . . . . . . . . . . . . . Highest Temperature 439 | . 93 138 312 . . 197 199 198 199 276 202 36 138 264 245 . 179 439 360 345 4 . 354 . Average Temperature 98 | . 25 53 96 . . 111 97 97 101 96 85 10 42 87 75 . 70 136 129 146 4 . 88 . Received Heat Transfer 7026 | . 48 51 177 . . 36 153 612 198 405 897 99 270 747 324 . 102 1167 468 813 153 60 129 117 Effects 23 | . . . 1 . . . . . . . 2 . . 1 . . . 3 5 7 . . 4 . Shutdowns 1 | . . . . . . . . . . . . . . . . . . . . . . . 1 . Energy Bleed 6 | . . . 1 . . . . . . . . . . 1 . . . . 2 1 . . 1 . Interference 11 | . . . . . . . . . . . 2 . . . . . . 3 3 3 . . . . Matter Decay 1 | . . . . . . . . . . . . . . . . . . . . . . . 1 . Short Circuit 2 | . . . . . . . . . . . . . . . . . . . . 1 . . 1 . Damage (minor) 2 | . . . . . . . . . . . . . . . . . . . . 2 . . . . Siege Activations . | . . . . . . . . . . . . . . . . . . . . . . . . . Robots Corrupted 8 | . . . . . . . . . . . 2 . . . 1 . . 1 . 1 1 1 1 . Combat Hostiles 8 | . . . . . . . . . . . 2 . . . 1 . . 1 . 1 1 1 1 . Parts Fried 42 | . . 1 . . . . . . 1 . 9 . . . 5 . 3 4 2 3 2 1 11 . Impact Corruptions . | . . . . . . . . . . . . . . . . . . . . . . . . . Robots Melted 3 | . . . . . . . . . . . . 1 . . . . . 1 . . . . 1 . Combat Hostiles 3 | . . . . . . . . . . . . 1 . . . . . 1 . . . . 1 . Parts Melted 74 | . . . . . . . 1 1 1 13 9 5 5 2 2 . . 17 3 7 . . 8 . Heat Transferred 47380 | . . . . . . 555 2294 2507 1506 3259 5194 1525 2669 1956 1677 . 822 7541 3608 4595 605 333 6216 518 Parts Sabotaged . | . . . . . . . . . . . . . . . . . . . . . . . . . Parts Stolen . | . . . . . . . . . . . . . . . . . . . . . . . . . Parts Stripped . | . . . . . . . . . . . . . . . . . . . . . . . . . Power Chain Reactions 13 | . . . . . . . . 2 1 . 5 . . . 2 . 1 . . . 1 . 1 . Missiles Intercepted . | . . . . . . . . . . . . . . . . . . . . . . . . . Alert | -11 -10 -10 -9 -9 -9 -8 -8 -8 -8 -8 -7 -7 -7 -7 -7 -7 -6 -6 -6 -6 -6 -6 -6 -5 ------- Run | Scr Mat Min Mat Min Exi Min Mat Gar Mat Gar Fac Gar Fac Low Low Dat Pro Fac Gar Fac Low Low Zio Pro Peak Influence 1125 | . 186 50 236 1 . 115 477 1125 728 924 576 722 331 . . . . 431 792 552 . . . . Average Influence 252 | . 49 15 115 1 . 18 255 749 507 658 147 475 124 . . . . 75 502 211 . . . . Maximum Alert Level 4 | . . . 1 . . . 2 4 3 3 2 3 1 . . . . 2 3 2 . . . . Low Security (%) 56 | 100 100 100 63 100 . 100 27 6 . . 71 8 72 . . . . 92 12 50 . . . . Level 1 17 | . . . 36 . . . 52 13 . 12 19 13 27 . . . . 3 19 45 . . . . Level 2 17 | . . . . . . . 19 18 96 41 8 68 . . . . . 4 45 4 . . . . Level 3 8 | . . . . . . . . 51 3 46 . 9 . . . . . . 22 . . . . . Level 4 . | . . . . . . . . 9 . . . . . . . . . . . . . . . . Level 5 . | . . . . . . . . . . . . . . . . . . . . . . . . . High Security . | . . . . . . . . . . . . . . . . . . . . . . . . . Max Security . | . . . . . . . . . . . . . . . . . . . . . . . . . Squads Dispatched 50 | . . . 1 . . . . . 1 . 16 . 4 . 1 . 1 15 . 10 . . . 1 Investigation 1 | . . . . . . . . . . . . . . . . . . 1 . . . . . . Extermination 22 | . . . . . . . . . . . 9 . 3 . . . . 6 . 4 . . . . Reinforcement 14 | . . . 1 . . . . . 1 . 5 . 1 . . . . 4 . 2 . . . . Assault 6 | . . . . . . . . . . . 1 . . . 1 . 1 1 . 1 . . . 1 Garrison 7 | . . . . . . . . . . . 1 . . . . . . 3 . 3 . . . . Intercept . | . . . . . . . . . . . . . . . . . . . . . . . . . Construction Impeded 1 | . . . . . . . . . . . . . . . . . . . . 1 . . . . Haulers Reinforced 1 | . . . . . . . . . . . . . . . . . . . . 1 . . . . Stealth | -11 -10 -10 -9 -9 -9 -8 -8 -8 -8 -8 -7 -7 -7 -7 -7 -7 -6 -6 -6 -6 -6 -6 -6 -5 --------- Run | Scr Mat Min Mat Min Exi Min Mat Gar Mat Gar Fac Gar Fac Low Low Dat Pro Fac Gar Fac Low Low Zio Pro Distress Signals 12 | . 2 . 2 . . . 3 . 1 . . . 1 . . . . 2 . 1 . . . . Communications Jammed . | . . . . . . . . . . . . . . . . . . . . . . . . . Distress Signals . | . . . . . . . . . . . . . . . . . . . . . . . . . Times Spotted 594 | . 13 3 13 . . 6 23 40 20 25 80 31 23 18 22 . 22 66 34 57 12 5 69 12 Peak Tracking Total 10 | . 3 2 5 . . 4 4 5 3 6 7 4 4 7 10 . 7 5 4 6 5 3 4 8 Tactical Retreats 73 | . . 1 . . . 2 2 10 2 3 5 2 1 3 1 . 1 6 10 5 2 . 17 . Traps | -11 -10 -10 -9 -9 -9 -8 -8 -8 -8 -8 -7 -7 -7 -7 -7 -7 -6 -6 -6 -6 -6 -6 -6 -5 ------- Run | Scr Mat Min Mat Min Exi Min Mat Gar Mat Gar Fac Gar Fac Low Low Dat Pro Fac Gar Fac Low Low Zio Pro Traps Triggered 22 | . . . . . . . . 4 . 5 5 3 . . . . . . 3 2 . . . . Indirectly . | . . . . . . . . . . . . . . . . . . . . . . . . . Trap Hack Attempts . | . . . . . . . . . . . . . . . . . . . . . . . . . Triggered . | . . . . . . . . . . . . . . . . . . . . . . . . . Disarmed . | . . . . . . . . . . . . . . . . . . . . . . . . . Reprogrammed . | . . . . . . . . . . . . . . . . . . . . . . . . . Reused 14 | . . . . . . . . 1 . . 6 . . . . . . 5 2 . . . . . Traps Reconfigurated 100 | . . . . . . . . 4 . 2 22 . 7 . . . . 50 15 . . . . . Traps Extracted . | . . . . . . . . . . . . . . . . . . . . . . . . . Installed . | . . . . . . . . . . . . . . . . . . . . . . . . . Triggered 24 | . . . . . . . . 2 . . 6 . . 2 5 . . 5 2 . . 2 . . Machines | -11 -10 -10 -9 -9 -9 -8 -8 -8 -8 -8 -7 -7 -7 -7 -7 -7 -6 -6 -6 -6 -6 -6 -6 -5 ---------- Run | Scr Mat Min Mat Min Exi Min Mat Gar Mat Gar Fac Gar Fac Low Low Dat Pro Fac Gar Fac Low Low Zio Pro Machines Disabled 46 | . . . . . . . 1 5 . 4 4 6 . 2 2 . . 8 10 4 . . . . Max in Single Turn 3 | . . . . . . . 1 1 . 1 1 2 . 1 1 . . 3 2 3 . . . . Garrison Access 2 | . . . . . . . . . . . 1 . . . . . . 1 . . . . . . Garrison Relay 16 | . . . . . . . . 4 . 4 . 4 . . . . . . 4 . . . . . Phase Generator 2 | . . . . . . . . . . . . 1 . . . . . . 1 . . . . . Machines Sabotaged . | . . . . . . . . . . . . . . . . . . . . . . . . . Garrisons Compromised . | . . . . . . . . . . . . . . . . . . . . . . . . . Overloaded Fab Kills . | . . . . . . . . . . . . . . . . . . . . . . . . . Fab Network Shutdowns 2 | . . . . . . . . . . . 1 . . . . . . . . 1 . . . . Hacking | -11 -10 -10 -9 -9 -9 -8 -8 -8 -8 -8 -7 -7 -7 -7 -7 -7 -6 -6 -6 -6 -6 -6 -6 -5 --------- Run | Scr Mat Min Mat Min Exi Min Mat Gar Mat Gar Fac Gar Fac Low Low Dat Pro Fac Gar Fac Low Low Zio Pro Machines Accessed 63 | . 5 1 3 . 1 . 5 . 5 . 12 . 3 1 2 4 . 13 . 5 2 . 1 . Terminals 40 | . 5 1 3 . . . 4 . 4 . 7 . 3 . . . . 8 . 4 1 . . . Fabricators 6 | . . . . . . . . . . . 3 . . . . . . 2 . 1 . . . . Repair Stations . | . . . . . . . . . . . . . . . . . . . . . . . . . Recycling Units 2 | . . . . . . . . . . . 1 . . . . . . 1 . . . . . . Scanalyzers 1 | . . . . . . . . . . . . . . . . . . 1 . . . . . . Garrison Access 4 | . . . . . . . 1 . 1 . 1 . . . . . . 1 . . . . . . Total Hacks 154 | . 13 1 6 . 1 . 11 . 15 . 22 . 6 1 3 28 . 24 . 8 12 . 3 . Successful 134 | . 12 . 5 . 1 . 9 . 12 . 20 . 5 1 3 28 . 18 . 5 12 . 3 . Failed 20 | . 1 1 1 . . . 2 . 3 . 2 . 1 . . . . 6 . 3 . . . . Catastrophic 1 | . . . . . . . . . . . . . 1 . . . . . . . . . . . Database Lockouts . | . . . . . . . . . . . . . . . . . . . . . . . . . Manual 84 | . 13 1 6 . 1 . 10 . 13 . 15 . 6 . . . . 14 . 5 . . . . Terminals 95 | . 13 1 6 . . . 10 . 14 . 14 . 6 . . . . 15 . 5 11 . . . Fabricators 12 | . . . . . . . . . . . 5 . . . . . . 4 . 3 . . . . Repair Stations . | . . . . . . . . . . . . . . . . . . . . . . . . . Recycling Units 5 | . . . . . . . . . . . 2 . . . . . . 3 . . . . . . Scanalyzers 1 | . . . . . . . . . . . . . . . . . . 1 . . . . . . Garrison Access 4 | . . . . . . . 1 . 1 . 1 . . . . . . 1 . . . . . . Terminal Hacks 79 | . 6 . 2 . 1 . 4 . 8 . 5 . 1 1 3 28 . 4 . 1 12 . 3 . Record 25 | . . . . . . . . . 1 . . . . . 2 11 . . . . 11 . . . Part Schematic 17 | . . . . . . . . . 2 . 3 . . . . 9 . . . . . . 3 . Robot Schematic 5 | . . . . . . . . . . . . . . . . 5 . . . . . . . . Robot Analysis 1 | . . . . . . . . . . . . . . . . . . 1 . . . . . . Prototype ID Bank 5 | . . . . . . . . . 1 . . . . . . 3 . 1 . . . . . . Open Door 3 | . . . . . . . . . . . . . . 1 1 . . . . . 1 . . . Branch Access Points 5 | . 1 . 1 . . . 1 . 1 . . . 1 . . . . . . . . . . . Terminal Index 1 | . 1 . . . . . . . . . . . . . . . . . . . . . . . Locate Traps 13 | . 4 . 1 . . . 3 . 2 . 1 . . . . . . 1 . 1 . . . . Registered Components 1 | . . . . . . . . . 1 . . . . . . . . . . . . . . . Registered Prototypes 2 | . . . . . . . . . . . 1 . . . . . . 1 . . . . . . EX-Prototype ID Bank 1 | . . . . . 1 . . . . . . . . . . . . . . . . . . . Fabricator Hacks 9 | . . . . . . . . . . . 4 . . . . . . 3 . 2 . . . . Load Schematic 4 | . . . . . . . . . . . 2 . . . . . . 1 . 1 . . . . Build 5 | . . . . . . . . . . . 2 . . . . . . 2 . 1 . . . . Repair Station Hacks . | . . . . . . . . . . . . . . . . . . . . . . . . . Recycling Unit Hacks 1 | . . . . . . . . . . . . . . . . . . 1 . . . . . . Retrieve Components 1 | . . . . . . . . . . . . . . . . . . 1 . . . . . . Scanalyzer 1 | . . . . . . . . . . . . . . . . . . 1 . . . . . . Insert Component 1 | . . . . . . . . . . . . . . . . . . 1 . . . . . . Garrison Access Hacks 4 | . . . . . . . 1 . 1 . 1 . . . . . . 1 . . . . . . Unlock Access 4 | . . . . . . . 1 . 1 . 1 . . . . . . 1 . . . . . . Unauthorized Hacks 40 | . 6 . 3 . . . 4 . 3 . 10 . 4 . . . . 8 . 2 . . . . Terminals 36 | . 6 . 3 . . . 4 . 3 . 8 . 4 . . . . 6 . 2 . . . . Botnet 33 | . 5 . 3 . . . 4 . 3 . 7 . 3 . . . . 6 . 2 . . . . Operators 3 | . 1 . . . . . . . . . 1 . 1 . . . . . . . . . . . Fabricators . | . . . . . . . . . . . . . . . . . . . . . . . . . Repair Stations . | . . . . . . . . . . . . . . . . . . . . . . . . . Recycling Units 4 | . . . . . . . . . . . 2 . . . . . . 2 . . . . . . Reject 2 | . . . . . . . . . . . 1 . . . . . . 1 . . . . . . Mask 2 | . . . . . . . . . . . 1 . . . . . . 1 . . . . . . Scanalyzers . | . . . . . . . . . . . . . . . . . . . . . . . . . Garrison Access . | . . . . . . . . . . . . . . . . . . . . . . . . . Data Cores Recovered 2 | . . . . . . . . . 1 . 1 . . . . . . . . . . . . . Used 2 | . . . . . . . . . 1 . 1 . . . . . . . . . . . . . Hacking Detections 33 | . 3 1 3 . . . 2 . 4 . 7 . 2 . . . . 8 . 3 . . . . Full Trace Events 1 | . . . . . . . . . . . . . . . . . . 1 . . . . . . Feedback Events . | . . . . . . . . . . . . . . . . . . . . . . . . . Feedback Blocked . | . . . . . . . . . . . . . . . . . . . . . . . . . Robot Schematics Acquired 5 | . . . . . . . . . . . . . . . . 5 . . . . . . . . Robots Built . | . . . . . . . . . . . . . . . . . . . . . . . . . Matter . | . . . . . . . . . . . . . . . . . . . . . . . . . Time . | . . . . . . . . . . . . . . . . . . . . . . . . . Total Robot Build Rating . | . . . . . . . . . . . . . . . . . . . . . . . . . Part Schematics Acquired 17 | . . . . . . . . . 2 . 3 . . . . 9 . . . . . . 3 . Parts Built 5 | . . . . . . . . . . . 3 . . . . . . 1 . 1 . . . . Matter 862 | . . . . . . . . . . . 292 . . . . . . 285 . 285 . . . . Time 450 | . . . . . . . . . . . 146 . . . . . . 152 . 152 . . . . Total Part Build Rating 21 | . . . . . . . . . . . 11 . . . . . . 5 . 5 . . . . Parts Repaired . | . . . . . . . . . . . . . . . . . . . . . . . . . Time . | . . . . . . . . . . . . . . . . . . . . . . . . . Parts Recycled . | . . . . . . . . . . . . . . . . . . . . . . . . . Recycled Matter . | . . . . . . . . . . . . . . . . . . . . . . . . . Retrieved Matter . | . . . . . . . . . . . . . . . . . . . . . . . . . Retrieved Components 10 | . . . . . . . . . . . . . . . . . . 10 . . . . . . Parts Scanalyzed . | . . . . . . . . . . . . . . . . . . . . . . . . . Part Schematics Acquired . | . . . . . . . . . . . . . . . . . . . . . . . . . Parts Damaged . | . . . . . . . . . . . . . . . . . . . . . . . . . Bothacking | -11 -10 -10 -9 -9 -9 -8 -8 -8 -8 -8 -7 -7 -7 -7 -7 -7 -6 -6 -6 -6 -6 -6 -6 -5 ------------ Run | Scr Mat Min Mat Min Exi Min Mat Gar Mat Gar Fac Gar Fac Low Low Dat Pro Fac Gar Fac Low Low Zio Pro Used RIF Installer 4 | . . . . . . . . 1 . 1 . 1 . . . . . . 1 . . . . . Patrol Navigation 1 | . . . . . . . . . . . . . . . . . . . 1 . . . . . Alert ID Control 1 | . . . . . . . . . . . . 1 . . . . . . . . . . . . Program Shield 1 | . . . . . . . . . . 1 . . . . . . . . . . . . . . Robots Hacked 85 | . . . . . . . . . . . 39 7 9 1 . . 1 14 . 12 . . 2 . Non-combat 76 | . . . . . . . . . . . 39 . 9 1 . . . 14 . 12 . . 1 . Combat 9 | . . . . . . . . . . . . 7 . . . . 1 . . . . . 1 . Robot Hacks Applied 109 | . . . . . . . . . . . 55 8 10 1 . . 1 18 . 14 . . 2 . parse_system 4 | . . . . . . . . . . . . 1 . . . . 1 . . . . . 2 . no_distress 2 | . . . . . . . . . . . 1 . . . . . . 1 . . . . . . deconstruct_machine 38 | . . . . . . . . . . . 31 . 2 . . . . 4 . 1 . . . . map_walls 2 | . . . . . . . . . . . 1 . . . . . . . . 1 . . . . randomize_corridors 13 | . . . . . . . . . . . 7 . 2 . . . . 3 . 1 . . . . map_earth 1 | . . . . . . . . . . . 1 . . . . . . . . . . . . . find_fabricator 1 | . . . . . . . . . . . . . . . . . . 1 . . . . . . drop_inventory 4 | . . . . . . . . . . . 1 . . . . . . 1 . 2 . . . . locate_stockpiles 3 | . . . . . . . . . . . 1 . . . . . . 1 . 1 . . . . deconstruct_bot 1 | . . . . . . . . . . . . . . . . . . 1 . . . . . . purge_threat 2 | . . . . . . . . . . . . . . . . . . 2 . . . . . . block_reporting 1 | . . . . . . . . . . . 1 . . . . . . . . . . . . . map_route 4 | . . . . . . . . . . . 2 . 1 . . . . . . 1 . . . . mark_security 1 | . . . . . . . . . . . 1 . . . . . . . . . . . . . overload_power 2 | . . . . . . . . . . . . . . . . . . . . 2 . . . . go_dormant 1 | . . . . . . . . . . . . 1 . . . . . . . . . . . . overwrite_iff 1 | . . . . . . . . . . . . 1 . . . . . . . . . . . . streamctrl_low 1 | . . . . . . . . . . . . . . 1 . . . . . . . . . . streamctrl_high 1 | . . . . . . . . . . . . 1 . . . . . . . . . . . . formatsys_low 16 | . . . . . . . . . . . 7 . 3 . . . . 3 . 3 . . . . formatsys_high 10 | . . . . . . . . . . . 1 4 2 . . . . 1 . 2 . . . . Relay Couplers Released 66 | . . . . . . . . 15 . 18 1 17 . . . . . . 15 . . . . . Machine Destruction 66 | . . . . . . . . 15 . 18 1 17 . . . . . . 15 . . . . . Attached 14 | . . . . . . . . . . . 5 2 2 . . . . 2 . 3 . . . . Robots Rewired 6 | . . . . . . . . . . . 1 . . . 2 . 2 1 . . . . . . Allies Hacked 1 | . . . . . . . . . . . . . . . . . . . . 1 . . . . Hacks Repelled . | . . . . . . . . . . . . . . . . . . . . . . . . . Allies | -11 -10 -10 -9 -9 -9 -8 -8 -8 -8 -8 -7 -7 -7 -7 -7 -7 -6 -6 -6 -6 -6 -6 -6 -5 -------- Run | Scr Mat Min Mat Min Exi Min Mat Gar Mat Gar Fac Gar Fac Low Low Dat Pro Fac Gar Fac Low Low Zio Pro Total Allies 38 | . . 3 . . . . . . . . 8 6 5 1 2 . 3 5 . 5 . . . . Largest Group 4 | . . 3 1 . . . . . . . 3 3 4 2 1 . 3 3 . 2 . . . . Highest-Rated Group 144 | . . 40 16 . . . . . . . 70 48 83 36 30 . 144 144 . 45 . . . . Highest-Rated Ally 94 | . . 16 16 . . . . . . . 32 16 28 19 30 . 94 94 . 37 . . . . Total Orders 4 | . . . . . . . . . . . 1 . 1 1 . . . 1 . . . . . . ROAM 1 | . . . . . . . . . . . . . . 1 . . . . . . . . . . AID 1 | . . . . . . . . . . . . . 1 . . . . . . . . . . . DROP 1 | . . . . . . . . . . . 1 . . . . . . . . . . . . . EXPLORE 1 | . . . . . . . . . . . . . . . . . . 1 . . . . . . Ally Attacks 124 | . . 6 1 . . . . . . . 5 27 3 . 8 . 44 30 . . . . . . Total Damage 2877 | . . 73 18 . . . . . . . 181 364 32 . 197 . 1485 527 . . . . . . Kills 23 | . . 1 . . . . . . . . 2 1 . . 1 . 13 5 . . . . . . Allies Corrupted . | . . . . . . . . . . . . . . . . . . . . . . . . . Allies Melted 1 | . . . . . . . . . . . . . . . 1 . . . . . . . . . Intel | -11 -10 -10 -9 -9 -9 -8 -8 -8 -8 -8 -7 -7 -7 -7 -7 -7 -6 -6 -6 -6 -6 -6 -6 -5 ------- Run | Scr Mat Min Mat Min Exi Min Mat Gar Mat Gar Fac Gar Fac Low Low Dat Pro Fac Gar Fac Low Low Zio Pro Robot Analysis Total 1 | . . . . . . . . . . . . . . . . . . 1 . . . . . . Derelict Logs Recovered 12 | . . . . 1 . . . . . . . . . 2 2 . 2 . . . 1 1 . 3 Drone Launches 2 | . . . . . . . . . . . . . . . . . . 2 . . . . . . Drone Recoveries . | . . . . . . . . . . . . . . . . . . . . . . . . . Exploration | -11 -10 -10 -9 -9 -9 -8 -8 -8 -8 -8 -7 -7 -7 -7 -7 -7 -6 -6 -6 -6 -6 -6 -6 -5 ------------- Run | Scr Mat Min Mat Min Exi Min Mat Gar Mat Gar Fac Gar Fac Low Low Dat Pro Fac Gar Fac Low Low Zio Pro Turns Passed 37821 | 128 1464 926 550 136 558 281 628 1321 600 1692 5358 1506 1429 2151 1584 154 1271 4001 1832 2552 1305 1077 4170 1147 Spaces Moved 17431 | 68 730 497 233 69 279 128 257 514 238 681 2481 743 697 1112 800 78 626 1851 850 1100 698 569 1635 497 Core 12 | 5 . . . . . . . . . . . . . . . . . . . . . . 7 . Treads 17419 | 63 730 497 233 69 279 128 257 514 238 681 2481 743 697 1112 800 78 626 1851 850 1100 698 569 1628 497 Legs . | . . . . . . . . . . . . . . . . . . . . . . . . . Wheels . | . . . . . . . . . . . . . . . . . . . . . . . . . Hover . | . . . . . . . . . . . . . . . . . . . . . . . . . Flight . | . . . . . . . . . . . . . . . . . . . . . . . . . Fastest Speed 50 | 50 160 180 180 200 200 200 172 180 192 192 175 170 170 170 180 200 180 156 160 156 162 183 183 165 Average Speed 183 | 151 178 180 192 200 200 200 183 196 193 197 182 172 170 178 180 200 183 167 175 169 178 183 217 189 Slowest Speed 1600 | 160 180 180 200 200 200 200 200 220 200 240 200 175 170 225 220 200 200 192 220 220 183 183 1600 190 Overloaded Moves . | . . . . . . . . . . . . . . . . . . . . . . . . . Propulsion Burnouts . | . . . . . . . . . . . . . . . . . . . . . . . . . Robots Hopped . | . . . . . . . . . . . . . . . . . . . . . . . . . Cave-ins Triggered . | . . . . . . . . . . . . . . . . . . . . . . . . . Exploration Rate (%) 63 | 7 92 91 29 26 70 34 37 73 26 88 56 99 21 98 87 68 78 49 98 31 94 74 90 59 Regions Visited 24 Branch Regions 12 Pre-discovered Areas 5 | . . . . 1 . . . . . . . . . 1 1 1 . . . . 1 . . . Known Exits Taken 20 | 1 1 1 1 1 1 1 1 . 1 . 1 . 1 1 1 1 1 1 . 1 1 1 1 . Unknown Exits Taken . | . . . . . . . . . . . . . . . . . . . . . . . . . Scrap Searched 19 | . . 1 . . . . . . . . . . . 4 3 . 3 . . . 3 1 3 1 Spaces Dug . | . . . . . . . . . . . . . . . . . . . . . . . . . Terrain Destroyed 329 | . . . . . . . 12 6 9 . 19 72 3 5 9 . 5 46 79 47 8 1 1 7 Melee . | . . . . . . . . . . . . . . . . . . . . . . . . . Projectile 95 | . . . . . . . 12 . 4 . 3 . 3 5 3 . 2 17 . 36 1 1 1 7 AOE 234 | . . . . . . . . 6 5 . 16 72 . . 6 . 3 29 79 11 7 . . . Actions | -11 -10 -10 -9 -9 -9 -8 -8 -8 -8 -8 -7 -7 -7 -7 -7 -7 -6 -6 -6 -6 -6 -6 -6 -5 --------- Run | Scr Mat Min Mat Min Exi Min Mat Gar Mat Gar Fac Gar Fac Low Low Dat Pro Fac Gar Fac Low Low Zio Pro Total 20723 | 88 812 514 298 68 280 136 335 667 311 862 2997 860 837 1185 860 77 698 2430 1022 1495 724 581 1919 667 Wait 882 | 7 5 6 9 . . . 8 32 7 51 117 10 57 1 . . 8 190 42 159 1 . 22 150 Move 17409 | 67 729 496 232 68 278 127 257 513 238 680 2480 742 696 1111 799 77 625 1850 849 1099 697 568 1634 497 Hop . | . . . . . . . . . . . . . . . . . . . . . . . . . Pick Up 183 | 5 19 2 10 . 1 . 8 3 7 8 30 4 3 8 3 . 3 30 8 7 3 . 21 . Fast Attach 98 | 7 2 . 4 . . . 1 4 1 2 13 1 . 3 7 . 4 21 5 9 2 1 9 2 Attach 69 | . . . 1 . . . 1 9 . 6 10 2 . 7 2 . . 10 2 7 . . 12 . Detach 13 | . . . . . . . . 1 . 1 2 . . . . . 1 5 . . . . 3 . Swap 355 | 2 5 . 9 . . . 6 2 6 7 79 20 17 7 3 . 14 79 17 49 2 . 31 . Drop 229 | . 11 1 13 . 1 . 12 2 6 8 45 11 2 3 3 . 11 54 11 13 2 . 19 1 Fire 1412 | . 41 9 20 . . 9 42 93 46 89 179 64 62 45 43 . 32 190 84 150 17 12 168 17 Melee 34 | . . . . . . . . . . . 34 . . . . . . . . . . . . . Ram . | . . . . . . . . . . . . . . . . . . . . . . . . . Kick . | . . . . . . . . . . . . . . . . . . . . . . . . . Crush . | . . . . . . . . . . . . . . . . . . . . . . . . . Escape Stasis 34 | . . . . . . . . 8 . 10 4 6 . . . . . . 4 2 . . . . Rewire 4 | . . . . . . . . . . . 4 . . . . . . . . . . . . . Trap . | . . . . . . . . . . . . . . . . . . . . . . . . . Miscellaneous 1 | . . . . . . . . . . . . . . . . . . 1 . . . . . . Route ------- -11/Scrapyard -10/Materials (discovered 4 exits: *Mat x3 / *Min) -10/Mines (discovered 2 exits: *Mat x2) -9/Materials -9/Mines -9/Exiles (discovered 2 exits: *Min x2) -8/Mines -8/Materials (discovered 3 exits: *Fac / Sto / Gar) -8/Garrison (discovered 3 exits: *Mat x3) -8/Materials (discovered 5 exits: *Fac x2 / Sto x2 / Gar) -8/Garrison (discovered 3 exits: *Fac x3) -7/Factory (discovered 4 exits: *Fac x2 / Low / Gar) -7/Garrison (discovered 3 exits: *Fac x3) -7/Factory (discovered 2 exits: *Low x2) -7/Lower Caves -7/Lower Caves (discovered 2 exits: *Fac / *Dat) -7/Data Miner -6/Proximity Caves -6/Factory (discovered 6 exits: *Fac x2 / *Low x2 / Ext / Gar) -6/Garrison (discovered 3 exits: *Fac x3) -6/Factory (discovered 5 exits: *Fac x2 / *Low x2 / Ext) -6/Lower Caves -6/Lower Caves (discovered 2 exits: *Fac / *Zio) -6/Zion (discovered 2 exits: Dee / *Pro) -5/Proximity Caves History --------- Turn | Location | Event 21 | -11/Scrapyard | Identified exit to Materials 21 | -11/Scrapyard | Discovered exit to Materials (range 16) 129 | -11/Scrapyard | Entered Materials 129 | -10/Materials | Evolved 1 slot: Utility x1 204 | -10/Materials | Identified exit to Mines 310 | -10/Materials | Build established: Hacker-Mutant 326 | -10/Materials | Identified exit to Materials 326 | -10/Materials | Discovered exit to Materials (range 16) 441 | -10/Materials | Discovered exit to Materials (range 13) 1147 | -10/Materials | Discovered exit to Materials (range 16) 1593 | -10/Materials | Entered Mines 1637 | -10/Mines | Discovered exit to Materials (range 8) 1650 | -10/Mines | Assisted by bots powering up and referring to "LRC-V3" 1781 | -10/Mines | Assembled infested the area 2371 | -10/Mines | Discovered exit to Materials (range 5) 2519 | -10/Mines | Entered Materials 2519 | -9/Materials | Accompanied by 1 ally 2519 | -9/Materials | Evolved 2 slots: Utility x2 2751 | -9/Materials | Identified exit to Mines 3069 | -9/Materials | Entered Mines 3076 | -9/Mines | Received a Rocket Launcher from a helpful Derelict 3197 | -9/Mines | Deemed a non-threat by the Exiles lab entrance 3197 | -9/Mines | Identified exit to Exiles 3197 | -9/Mines | Discovered exit to Exiles (range 5) 3205 | -9/Mines | Entered Exiles 3235 | -9/Exiles | Identified exit to Mines 3235 | -9/Exiles | Discovered exit to Mines (range 15) 3261 | -9/Exiles | Met 8R-AWN 3293 | -9/Exiles | Met EX-HEX 3389 | -9/Exiles | Met EX-DEC 3441 | -9/Exiles | Met EX-BIN 3471 | -9/Exiles | Aligned with FarCom system 3473 | -9/Exiles | Given EX-Vault access code 3519 | -9/Exiles | Opened EX-Vault 3534 | -9/Exiles | Found Trap Reconfigurator 3579 | -9/Exiles | Warned to stay clear of 0b10 Research branches 3735 | -9/Exiles | Discovered exit to Mines (range 14) 3763 | -9/Exiles | Left Exiles lab with Trap Reconfigurator 3763 | -9/Exiles | Entered Mines 4011 | -8/Mines | Identified exit to Materials 4011 | -8/Mines | Discovered exit to Materials (range 13) 4044 | -8/Mines | Entered Materials 4044 | -8/Materials | Evolved 2 slots: Utility x2 4601 | -8/Materials | Identified exit to Factory 4601 | -8/Materials | Discovered exit to Factory (range 15) 4628 | -8/Materials | Identified exit to Storage 4672 | -8/Materials | Identified exit to Garrison 4672 | -8/Materials | Entered Garrison 4681 | -8/Garrison | Triggered checkpoint 4784 | -8/Garrison | Triggered checkpoint 4826 | -8/Garrison | Garrison Relay disabled 4926 | -8/Garrison | Triggered checkpoint 4939 | -8/Garrison | Triggered checkpoint 5025 | -8/Garrison | Lost 4 parts (1p1n1u1w) 5096 | -8/Garrison | Triggered checkpoint 5131 | -8/Garrison | Identified exit to Materials 5131 | -8/Garrison | Discovered exit to Materials (range 8) 5165 | -8/Garrison | Triggered checkpoint 5218 | -8/Garrison | Garrison Relay disabled 5356 | -8/Garrison | Triggered checkpoint 5416 | -8/Garrison | Triggered checkpoint 5460 | -8/Garrison | Garrison Relay disabled 5544 | -8/Garrison | Discovered exit to Materials (range 9) 5722 | -8/Garrison | Discovered exit to Materials (range 15) 5768 | -8/Garrison | Installed Relay Interface Framework 5818 | -8/Garrison | Triggered checkpoint 5869 | -8/Garrison | Garrison Relay disabled 5993 | -8/Garrison | Entered Materials 6228 | -8/Materials | Discovered exit to Factory (range 16) 6412 | -8/Materials | Discovered exit to Factory (range 12) 6593 | -8/Materials | Identified exit to Garrison 6593 | -8/Materials | Entered Garrison 6603 | -8/Garrison | Expanded RIF knowledge: Program Shield 6663 | -8/Garrison | Triggered checkpoint 6708 | -8/Garrison | Garrison Relay disabled 6784 | -8/Garrison | Triggered checkpoint 6820 | -8/Garrison | Triggered checkpoint 6867 | -8/Garrison | Triggered checkpoint 7090 | -8/Garrison | Core integrity fell below 50% 7200 | -8/Garrison | Discovered exit to Factory (range 10) 7278 | -8/Garrison | Triggered checkpoint 7303 | -8/Garrison | Garrison Relay disabled 7471 | -8/Garrison | Triggered checkpoint 7609 | -8/Garrison | Discovered exit to Factory (range 10) 7663 | -8/Garrison | Triggered checkpoint 7712 | -8/Garrison | Garrison Relay disabled 8031 | -8/Garrison | Discovered exit to Factory (range 5) 8077 | -8/Garrison | Triggered checkpoint 8128 | -8/Garrison | Garrison Relay disabled 8285 | -8/Garrison | Entered Factory 8285 | -7/Factory | Evolved 2 slots: Power x1, Propulsion x1 8984 | -7/Factory | Build established: Bothacker-Mutant 9131 | -7/Factory | P-60 Hacker assimilated allied Guardian 4a 9133 | -7/Factory | P-60 Hacker assimilated allied Administrator 4a 9438 | -7/Factory | Fabricated Hcp. Storage Unit? 9969 | -7/Factory | Garrison activated, responded to threat 10550 | -7/Factory | Identified exit to Factory 10550 | -7/Factory | Discovered exit to Factory (range 7) 11381 | -7/Factory | Destroyed 7 combat bots 11714 | -7/Factory | Build established: Scavenger-Mutant 11885 | -7/Factory | Identified exit to Lower Caves 11885 | -7/Factory | Discovered exit to Lower Caves (range 65) 11885 | -7/Factory | Discovered exit to Factory (range 97) 12037 | -7/Factory | Build established: Hacker-Mutant 12413 | -7/Factory | Fabricated Imp. System Backup Module? 12543 | -7/Factory | Local fabrication network quarantined 13636 | -7/Factory | Identified exit to Garrison 13643 | -7/Factory | Entered Garrison 13674 | -7/Garrison | Phase Generator disabled 13761 | -7/Garrison | Triggered checkpoint 13774 | -7/Garrison | Garrison Relay disabled 13835 | -7/Garrison | Triggered checkpoint 13865 | -7/Garrison | Triggered checkpoint 13886 | -7/Garrison | Triggered checkpoint 13919 | -7/Garrison | Triggered checkpoint 14177 | -7/Garrison | Identified exit to Factory 14177 | -7/Garrison | Discovered exit to Factory (range 14) 14230 | -7/Garrison | Triggered checkpoint 14283 | -7/Garrison | Garrison Relay disabled 14606 | -7/Garrison | Triggered checkpoint 14621 | -7/Garrison | Discovered exit to Factory (range 11) 14708 | -7/Garrison | Triggered checkpoint 14727 | -7/Garrison | Garrison Relay disabled 14889 | -7/Garrison | Discovered exit to Factory (range 15) 14927 | -7/Garrison | Expanded RIF knowledge: Alert ID Control 14966 | -7/Garrison | Triggered checkpoint 15004 | -7/Garrison | Garrison Relay disabled 15149 | -7/Garrison | Entered Factory 15149 | -7/Factory | Accompanied by 1 ally 15323 | -7/Factory | Build established: Bothacker-Mutant 16457 | -7/Factory | Build established: Hacker-Mutant 16578 | -7/Factory | Entered Lower Caves 16578 | -7/Lower Caves | Accompanied by 2 allies 16687 | -7/Lower Caves | Encountered a Warlord checkpoint 16700 | -7/Lower Caves | Learned Factory terminal intel 16898 | -7/Lower Caves | Attracted the attention of an 0b10 base 16911 | -7/Lower Caves | Core integrity fell below 50% 16968 | -7/Lower Caves | Lost 4 parts (1p1n1u1w) 17222 | -7/Lower Caves | Learned location of Zion (-6) 17495 | -7/Lower Caves | Spotted B-75 Beast 17521 | -7/Lower Caves | Destroyed B-75 Beast 17539 | -7/Lower Caves | Lost 4 parts (2n1u1w) 18404 | -7/Lower Caves | Identified exit to Lower Caves 18404 | -7/Lower Caves | Discovered exit to Lower Caves (range 13) 18437 | -7/Lower Caves | Attracted the attention of an 0b10 checkpoint 18729 | -7/Lower Caves | Entered another Lower Caves area 18771 | -7/Lower Caves | Learned Factory emergency access door positions 18869 | -7/Lower Caves | Discovered exit to Factory (range 10) 19174 | -7/Lower Caves | Learned Factory stockpile data 19249 | -7/Lower Caves | Attracted the attention of an 0b10 outpost 19308 | -7/Lower Caves | Destroyed 9 combat bots 19314 | -7/Lower Caves | Lost 7 parts (1p2n3u1w) 19660 | -7/Lower Caves | Build established: Scavenger-Mutant 19870 | -7/Lower Caves | Learned location of Armory (-4) 19870 | -7/Lower Caves | Learned Research garrison access intel 20262 | -7/Lower Caves | Identified exit to Data Miner 20262 | -7/Lower Caves | Discovered exit to Data Miner (range 16) 20313 | -7/Lower Caves | Entered Data Miner 20313 | -7/Data Miner | Identified exit to Proximity Caves 20313 | -7/Data Miner | Discovered exit to Proximity Caves (range 6) 20351 | -7/Data Miner | Met Data Miner 20395 | -7/Data Miner | Learned location of Section 7 (-2) 20395 | -7/Data Miner | Acquired the access code to Warlord's prototype stash 20423 | -7/Data Miner | Received God Mode back door access code from Data Miner 20467 | -7/Data Miner | Entered Proximity Caves 20481 | -6/Proximity Caves | Learned 4 Factory zone layouts 20642 | -6/Proximity Caves | Escorted by Enhanced Grunt 21062 | -6/Proximity Caves | Attracted the attention of an 0b10 checkpoint 21365 | -6/Proximity Caves | Learned Factory trap positions 21445 | -6/Proximity Caves | Attracted the attention of an 0b10 outpost 21620 | -6/Proximity Caves | Discovered exit to Factory (range 19) 21635 | -6/Proximity Caves | Spotted B-75 Beast 21649 | -6/Proximity Caves | Allies destroyed B-75 Beast 21738 | -6/Proximity Caves | Entered Factory 21738 | -6/Factory | Accompanied by 3 allies 21738 | -6/Factory | Evolved 2 slots: Propulsion x1, Utility x1 21739 | -6/Factory | Identified exit to Factory 21740 | -6/Factory | Loaded intel: 92 trap records 21743 | -6/Factory | Loaded intel: 22 terminal locations 21897 | -6/Factory | Identified exit to Lower Caves 21897 | -6/Factory | Discovered exit to Lower Caves (range 11) 21930 | -6/Factory | Found Exp. Thermal Shield 22409 | -6/Factory | Build established: Scavenger-Skirmisher 23096 | -6/Factory | Discovered exit to Factory (range 11) 23266 | -6/Factory | Incoming investigation squad redirected 23397 | -6/Factory | Spotted B-75 Beast 23494 | -6/Factory | Destroyed B-75 Beast 23518 | -6/Factory | Lost 4 parts (1p2n1w) 23885 | -6/Factory | Build established: Scavenger-Mutant 24068 | -6/Factory | Fabricated Exp. Terrain Scan Processor (x1) 24171 | -6/Factory | Garrison activated, responded to threat 24401 | -6/Factory | Incoming assault squad redirected 24614 | -6/Factory | Discovered exit to Lower Caves (range 19) 25030 | -6/Factory | Identified exit to Extension 25030 | -6/Factory | Discovered exit to Extension (range 19) 25737 | -6/Factory | Identified exit to Garrison 25739 | -6/Factory | Entered Garrison 25862 | -6/Garrison | Triggered checkpoint 25960 | -6/Garrison | Triggered checkpoint 25964 | -6/Garrison | Triggered checkpoint 25979 | -6/Garrison | Triggered checkpoint 26150 | -6/Garrison | Build established: Hacker-Mutant 26212 | -6/Garrison | Identified exit to Factory 26212 | -6/Garrison | Discovered exit to Factory (range 15) 26251 | -6/Garrison | Expanded RIF knowledge: Patrol Navigation 26304 | -6/Garrison | Triggered checkpoint 26323 | -6/Garrison | Garrison Relay disabled 26475 | -6/Garrison | Discovered exit to Factory (range 14) 26528 | -6/Garrison | Triggered checkpoint 26556 | -6/Garrison | Garrison Relay disabled 26712 | -6/Garrison | Triggered checkpoint 26738 | -6/Garrison | Garrison Relay disabled 26864 | -6/Garrison | Build established: Bothacker-Mutant 26954 | -6/Garrison | Lost 3 parts (3n) 27161 | -6/Garrison | Phase Generator disabled 27197 | -6/Garrison | Discovered exit to Factory (range 3) 27237 | -6/Garrison | Garrison Relay disabled 27250 | -6/Garrison | Triggered checkpoint 27571 | -6/Garrison | Entered Factory 27605 | -6/Factory | Discovered exit to Lower Caves (range 5) 27805 | -6/Factory | Discovered exit to Lower Caves (range 89) 28087 | -6/Factory | Fabricated Exp. Terrain Scanner (x1) 28263 | -6/Factory | Local fabrication network quarantined 28271 | -6/Factory | First assault squad dispatched 28305 | -6/Factory | Discovered exit to Factory (range 30) 28421 | -6/Factory | Incoming assault squad redirected 28907 | -6/Factory | Discovered exit to Extension (range 28) 29306 | -6/Factory | Garrison activated, responded to threat 29311 | -6/Factory | Discovered exit to Factory (range 29) 29385 | -6/Factory | Build established: Bothacker-Skirmisher 29586 | -6/Factory | Core integrity fell below 50% 29880 | -6/Factory | Build established: Hacker-Skirmisher 30123 | -6/Factory | Entered Lower Caves 30260 | -6/Lower Caves | Encountered a Warlord checkpoint 30409 | -6/Lower Caves | Build established: Hacker-Mutant 30858 | -6/Lower Caves | Attracted the attention of an 0b10 base 30896 | -6/Lower Caves | Identified exit to Lower Caves 30896 | -6/Lower Caves | Learned location of 1 exit from Lower Caves 30896 | -6/Lower Caves | Learned location of 2 exits from Upper Caves 30896 | -6/Lower Caves | Learned 8 Factory zone layouts 30896 | -6/Lower Caves | Learned Research trap positions 30896 | -6/Lower Caves | Learned Research terminal intel 30896 | -6/Lower Caves | Learned Armory terminal intel 30896 | -6/Lower Caves | Learned Extension garrison access intel 31428 | -6/Lower Caves | Entered another Lower Caves area 31429 | -6/Lower Caves | Discovered exit to Factory (range 10) 31429 | -6/Lower Caves | Identified exit to Zion 32505 | -6/Lower Caves | Entered Zion 32550 | -6/Zion | Identified exit to Proximity Caves 32550 | -6/Zion | Discovered exit to Proximity Caves (range 25) 32780 | -6/Zion | RIF detected upon attempting to enter Zion 32780 | -6/Zion | Attacked by Zionites 32780 | -6/Zion | Spotted GV-SAC(B) 32780 | -6/Zion | Spotted JS-2DW(B) 32840 | -6/Zion | Destroyed GV-SAC(B) 32868 | -6/Zion | Lost 7 parts (2p3n2w) 32870 | -6/Zion | Destroyed JS-2DW(B) 33030 | -6/Zion | Core integrity fell below 20% 33344 | -6/Zion | Found Prototype Device 33345 | -6/Zion | Identified Mobile Refinery Mk. CCLXVII 34445 | -6/Zion | Destroyed Imprinter 34455 | -6/Zion | Extracted access codes from Imprinter's data core 34684 | -6/Zion | Build established: Scavenger-Mutant 35060 | -6/Zion | Identified exit to Deep Caves 35060 | -6/Zion | Discovered exit to Deep Caves (range 25) 35571 | -6/Zion | Found Prototype Processor 35573 | -6/Zion | Identified Exp. Target Analyzer 35574 | -6/Zion | Found Faulty Exp. Target Analyzer 35578 | -6/Zion | Found Prototype Processor 35585 | -6/Zion | Found Prototype Processor 35588 | -6/Zion | Found Prototype Processor 35591 | -6/Zion | Found Prototype Processor 35632 | -6/Zion | Identified Spectral Analyzer 35650 | -6/Zion | Identified Exp. Core Analyzer 35655 | -6/Zion | Identified Exp. Armor Integrity Analyzer (x2) 36570 | -6/Zion | Build established: Bothacker-Skirmisher 36675 | -6/Zion | Entered Proximity Caves 36748 | -5/Proximity Caves | Learned Factory terminal intel 36919 | -5/Proximity Caves | Spotted B-75 Beast 37289 | -5/Proximity Caves | Build established: Bothacker-Mutant 37526 | -5/Proximity Caves | Learned location of 1 exit from Factory 37636 | -5/Proximity Caves | Received a Behemoth hack from an annoying Tinkerer 37765 | -5/Proximity Caves | Attracted the attention of an 0b10 outpost 37822 | -5/Proximity Caves | Destroyed by G-50 Soldier with Heavy Laser Last Messages --------------- 37767_ 4I-KVN(c): "Enjoy!" 37767_ 4I-KVN(c) slips back into the shadows. 37769_ Y-72 Warden: "REQUESTING BACKUP." 37782_ Slug penetrates Wall. 37782_ Destroyed Carbon-fiber Leg. 37782_ Destroyed Lgt. Angular Momentum Engine. 37782_ G-50 Soldier suffers critical hit. 37782_ G-50 Soldier destroyed. 37785_ Slug penetrates Y-72 Warden. 37788_ Penetrated by Slug. 37791_ Y-72 Warden destroyed. 37791_ Angular Momentum Engine destroyed. 37794_ Slug penetrates G-50 Soldier. 37794_ G-50 Soldier suffers critical hit. 37794_ G-50 Soldier destroyed. 37801_ Acquired 16 matter. 37802_ Acquired 12 matter. 37809_ Acquired Lgt. Angular Momentum Engine. 37813_ B-60 Warrior destroyed. 37819_ Slug penetrates B-60 Warrior. Map ----- +----------------------------------------------------+ | #### ## ########### ### ######## | | ## ######### #### ######## | | ## ## ## ##### #### ###### | | ### #### ### ##### ## #### ##### | | #### ##### ### ##### ## ### ##### | | ########## ### ##### ###### ##### | | ####### ## ##### ######### ? ##### | | ######## ######## ######### #### | | ######## ####### ########### ?##### | | ######### ######## ####### ########### ###?### | | ######### # """"# ####### ########### ####??# | | ######## # # ###### ########## ####### | | ######## # # ###### #######? ##?###?? | | ######## # #+## ####### ######## ?##?##?? | | ###### # # ######## ## ####? ###????? | | #"""# ######### ? ? ????????? | | ### ###### #######??? ???????????? | | ### ##### ?######??? #???????????? | | ### ###### ## ###????# #????????????? | | ####### #####?# #?????????????? | | ########### g ### ## #?? #?????????? | | ##### #### ## g##;;# ???# #????????? | | ### ####### ##; #???# ????????? | | ### ####### ? ### #???# ???????? | | ## ## = #????# ???????? | | ??# b@%= #???# ???????? | | #######?#???## ###!%##??# #???????? | | #########????????#=%;### ?????????? | | ## ##### ####???### ;;# #????????????? | | ## ### ##?## #????????????? | | ## ### [ ##???????????? | | ?# #???????????? | | ### ########## ##???????????? | | ??## #????????####### #### ######????????????? | | ???####??????????????#####??##;#?????????????????? | | ?????????????????????????????? #?????????????????? | | ?????????????????????????????? #?????????????????? | | ??????????????????????????????##?????????????????? | | ?????????????????????????????????????????????????? | | ?????????????????????????????????????????????????? | | ?????????????????????????????????????????????????? | | ?????????????????????????????????????????????????? | | ?????????????????????????????????????????????????? | | ?????????????????????????????????????????????????? | | ?????????????????????????????????????????????????? | | ?????????????????????????????????????????????????? | | ?????????????????????????????????????????????????? | | ?????????????????????????????????????????????????? | | ?????????????????????????????????????????????????? | | ?????????????????????????????????????????????????? | +----------------------------------------------------+ Best States ------------- Heat Dissipation 110 Coolant Potential 100 Energy Generation 34 Energy Capacity 510 Matter Stores 300 Matter Capacity 300 Sight Range 16 Terrain Scan Range 30 Terrain Scan Density 1135 Base Temperature (-) 150 EM Shielding 2 Armor Coverage 450 Resistance: KI 65 Resistance: TH 65 Resistance: EX 35 Resistance: EM 50 Resistance: I 35 Resistance: S 35 Resistance: P 35 Core Shielding 20 Power Shielding 66 Utility Shielding 66 Weapon Shielding 90 Thermal Conversion 60 Phase Shifting 5 Evasion (%) 45 Targeting Accuracy 12 Recoil Reduction 4 Particle Charging 25 Offensive Hacking 20 Item Schematics ----------------- Hcp. Storage Unit | -8/Materials | Hacked Cooling System | -8/Materials | Hacked Imp. System Backup Module | -7/Factory | Hacked Dynamic Insulation System | -7/Factory | Hacked Armor Integrity Analyzer | -7/Factory | Hacked Combat Drone Bay | -7/Data Miner | Free Lgt. Regenerative Plating | -7/Data Miner | Free Exp. Flexi-carbon Leg | -7/Data Miner | Free Exp. Cesium-ion Thruster | -7/Data Miner | Free Exp. Terrain Scanner | -7/Data Miner | Free Exp. Terrain Scan Processor | -7/Data Miner | Free Tactical Coordination Suite | -7/Data Miner | Free Exp. ECM Suite | -7/Data Miner | Free Cloaking Device | -7/Data Miner | Free Battle Cannon | -6/Zion | Free Slug Cannon | -6/Zion | Free Flamer | -6/Zion | Free Robot Schematics ------------------ S-27 Virus | -7/Data Miner | Free G-50 Soldier | -7/Data Miner | Free G-67 Veteran | -7/Data Miner | Free L-41 Fighter | -7/Data Miner | Free I-36 Angel | -7/Data Miner | Free Fabricated ------------ Hcp. Storage Unit | x1 | -7/Factory Imp. System Backup Module | x2 | -7/Factory Exp. Terrain Scan Processor | x1 | -6/Factory Exp. Terrain Scanner | x1 | -6/Factory Alien Tech Used ----------------- None Achievements -------------- None Challenges ------------ None Game ------ Seed ReflectiveDisruptionWeb Manual? 0 Play Time 06:21:34 Cumulative 363.9 hours Start 2020.09.03 @ 09:57:15 End 2020.09.04 @ 11:32:22 Sessions 23 Manual Loads 0 Difficulty Explorer Special Mode None Game No. 89 Rogue 26 Adventurer 0 Explorer 63 Win Type - Total 1 Types 1/0/0/0/0/0/0 Lore% 66 Gallery% 70 Achievement% 61 Wizard Run 0 Options --------- ASCII 0 Keyboard 0 Movement Mouse Keybinds 0 Fullscreen 1 Font 18/TerminusBold Map View 76x50 Tactical HUD 1 Map Filters NONE Filters NONE Steam 1 RUN: 494bad86-c5cf-4a53-9112-5030ec2d69a8